[Event "ONJK-DE 2019"]
[Site "Borne"]
[Date "2019.08.05"]
[Round "1.1"]
[White "Pick, Max"]
[Black "Bollow, Niels Fredrik"]
[Result "1-0"]
[ECO "A29"]
[WhiteElo "1515"]
[BlackElo "913"]
[Annotator "NA"]
[PlyCount "83"]
[EventDate "2019.08.05"]
[EventType "swiss"]
[EventCountry "NED"]
[SourceTitle "playchess.com"]
[Source "ChessBase"]
[SourceQuality "1"]
[TimeControl "2400+30"]

1. Nf3 {[%emt 0:00:00]} Nc6 {[%emt 0:00:00]} 2. c4 {[%emt 0:00:44]} Nf6 {[%emt 0:00:40]} 3. g3 {[%emt 0:01:04]} e5 {[%emt 0:01:20]} 4. Bg2 {[%emt 0:01:39]} d6 {[%emt 0:00:47]} 5. Nc3 {[%emt 0:02:09]} Bf5 {[%emt 0:00:33]} 6. d4 {[%emt 0:04:45]} exd4 {[%emt 0:00:50]} 7. Nxd4 {[%emt 0:00:30]} Nxd4 {[%emt 0:00:23]} 8. Qxd4 {[%emt 0:00:15]} d5 {[%emt 0:00:33]} 9. Nxd5 {[%emt 0:01:48]} Nxd5 {[%emt 0:00:15]} 10. Qxd5 {[%emt 0:00:50]} Be6 {[%emt 0:00:54]} 11. Qxb7 {[%emt 0:06:06]} Rb8 {[%emt 0:00:36]} 12. Qc6+ {[%emt 0:00:29]} Bd7 {[%emt 0:00:35]} 13. Qe4+ {[%emt 0:00:17]} Be7 {[%emt 0:00:39]} 14. O-O {[%emt 0:01:06]} f5 {[%emt 0:00:24]} 15. Qe5 {[%emt 0:00:43]} Ba4 {[%emt 0:00:54]} 16. b3 {[%emt 0:00:56]} Bd7 {[%emt 0:00:20]} 17. Bg5 {[%emt 0:00:31]} f4 {[%emt 0:00:52]} 18. Bxf4 {[%emt 0:00:40]} Rb6 {[%emt 0:01:07]} 19. Rad1 {[%emt 0:00:47]} Re6 {[%emt 0:00:26]} 20. Qxe6 {[%emt 0:01:22]} Bxe6 {[%emt 0:00:34]} 21. Rxd8+ {[%emt 0:00:06]} Kxd8 {[%emt 0:00:14]} 22. Rd1+ {[%emt 0:00:05]} Kc8 {[%emt 0:01:31]} 23. Rd4 {[%emt 0:01:23]} Bg4 {[%emt 0:00:23]} 24. h3 {[%emt 0:00:50]} Bf5 {[%emt 0:00:29]} 25. g4 {[%emt 0:01:14]} Bb1 {[%emt 0:00:12]} 26. Bc6 {[%emt 0:00:05]} g5 {[%emt 0:01:03]} 27. Be5 {[%emt 0:00:24]} Rf8 {[%emt 0:00:12]} 28. Rd7 {[%emt 0:00:14]} Bc5 {[%emt 0:00:29]} 29. Rxc7+ {[%emt 0:00:08]} Kd8 {[%emt 0:00:54]} 30. Rd7+ {[%emt 0:00:05]} Kc8 {[%emt 0:01:22]} 31. Rc7+ {[%emt 0:01:05]} Kd8 {[%emt 0:00:25]} 32. Bf3 {[%emt 0:00:09]} Bd4 {[%emt 0:00:47]} 33. Bd6 {[%emt 0:00:27]} Rf6 {[%emt 0:01:13]} 34. c5 {[%emt 0:00:22]} Bxa2 {[%emt 0:00:33]} 35. e3 {[%emt 0:00:09]} Rxf3 {[%emt 0:01:08]} 36. exd4 {[%emt 0:00:06]} Rxb3 {[%emt 0:00:40]} 37. Rxa7 {[%emt 0:01:14]} Rb1+ {[%emt 0:00:15]} 38. Kh2 {[%emt 0:00:25]} Rb2 {[%emt 0:00:22]} 39. c6 {[%emt 0:00:09]} Rxf2+ {[%emt 0:00:32]} 40. Kg3 {[%emt 0:00:11]} Rb2 {[%emt 0:01:37]} 41. Ra8+ {[%emt 0:00:14]} Rb8 {[%emt 0:01:10]} 42. Rxb8# {[%emt 0:00:22]} 1-0

[Event "ONJK-DE 2019"]
[Site "Borne"]
[Date "2019.08.05"]
[Round "1.2"]
[White "Boumphrey, Luke S"]
[Black "Wieggers, Wouter"]
[Result "1/2-1/2"]
[ECO "A48"]
[WhiteElo "1926"]
[BlackElo "1288"]
[Annotator "NA"]
[PlyCount "72"]
[EventDate "2019.08.05"]
[EventType "swiss"]
[EventCountry "NED"]
[SourceTitle "playchess.com"]
[Source "ChessBase"]
[SourceQuality "1"]
[TimeControl "2400+30"]

1. d4 {[%emt 0:00:00]} Nf6 {[%emt 0:00:00]} 2. Nf3 {[%emt 0:00:00]} g6 {[%emt 0:00:00]} 3. Bg5 {[%emt 0:00:00]} Bg7 {[%emt 0:00:00]} 4. Nc3 {[%emt 0:00:12]} O-O {[%emt 0:00:17]} 5. e3 {[%emt 0:00:11]} d6 {[%emt 0:01:15]} 6. Bb5 {[%emt 0:00:19]} c6 {[%emt 0:01:01]} 7. Bd3 {[%emt 0:00:04]} c5 {[%emt 0:02:31]} 8. O-O {[%emt 0:01:04]} Nc6 {[%emt 0:01:10]} 9. Bxf6 {[%emt 0:01:25]} Bxf6 {[%emt 0:00:34]} 10. Be4 {[%emt 0:00:19]} Bg4 {[%emt 0:01:30]} 11. Bxc6 {[%emt 0:00:24]} bxc6 {[%emt 0:00:23]} 12. h3 {[%emt 0:01:11]} Bd7 {[%emt 0:00:07]} 13. Re1 {[%emt 0:00:25]} cxd4 {[%emt 0:02:23]} 14. exd4 {[%emt 0:00:13]} Rb8 {[%emt 0:04:34]} 15. Rb1 {[%emt 0:01:28]} Bg7 {[%emt 0:02:09]} 16. Qe2 {[%emt 0:05:59]} e6 {[%emt 0:01:43]} 17. a3 {[%emt 0:04:45]} Qb6 {[%emt 0:02:56]} 18. Qe3 {[%emt 0:01:16]} c5 {[%emt 0:03:54]} 19. dxc5 {[%emt 0:01:33]} Qxc5 {[%emt 0:01:06]} 20. Qxc5 {[%emt 0:00:23]} dxc5 {[%emt 0:01:07]} 21. Re3 {[%emt 0:00:21]} Bc6 {[%emt 0:04:00]} 22. b3 {[%emt 0:01:25]} Bh6 {[%emt 0:07:59]} 23. Rd3 {[%emt 0:00:55]} Bg7 {[%emt 0:02:00]} 24. Ne2 {[%emt 0:01:05]} Bb5 {[%emt 0:01:09]} 25. Re3 {[%emt 0:01:53]} Bh6 {[%emt 0:01:53]} 26. Re4 {[%emt 0:00:18]} f5 {[%emt 0:01:34]} 27. Rxe6 {[%emt 0:01:18]} Kf7 {[%emt 0:00:17]} 28. Re5 {[%emt 0:00:51]} Bg7 {[%emt 0:03:29]} 29. Re3 {[%emt 0:00:27]} Bh6 {[%emt 0:01:15]} 30. Re5 {[%emt 0:00:14]} Bg7 {[%emt 0:00:55]} 31. Re3 {[%emt 0:00:07]} Bh6 {[%emt 0:01:25]} 32. Re5 {[%emt 0:00:07]} Bg7 {[%emt 0:00:37]} 33. Re3 {[%emt 0:00:06]} Bh6 {[%emt 0:00:43]} 34. Re5 {[%emt 0:00:05]} Bg7 {[%emt 0:00:30]} 35. Re3 {[%emt 0:00:05]} Bh6 {[%emt 0:00:25]} 36. Re5 {[%emt 0:00:06]} Bg7 {[%emt 0:00:34]} 1/2-1/2

[Event "ONJK-DE 2019"]
[Site "Borne"]
[Date "2019.08.05"]
[Round "1.3"]
[White "Van Leeuwen, Robin"]
[Black "Knol, Jeffrey"]
[Result "1-0"]
[ECO "B20"]
[WhiteElo "1446"]
[BlackElo "1111"]
[Annotator "NA"]
[PlyCount "23"]
[EventDate "2019.08.05"]
[EventType "swiss"]
[EventCountry "NED"]
[SourceTitle "playchess.com"]
[Source "ChessBase"]
[SourceQuality "1"]
[TimeControl "2400+30"]

1. e4 {[%emt 0:00:00]} c5 {[%emt 0:00:00]} 2. a3 {[%emt 0:00:00]} d6 {[%emt 0:00:16]} 3. b4 {[%emt 0:00:47]} b6 {[%emt 0:01:12]} 4. Bc4 {[%emt 0:01:26]} Bb7 {[%emt 0:01:39]} 5. Nc3 {[%emt 0:01:32]} Nd7 {[%emt 0:02:19]} 6. Bb2 {[%emt 0:04:19]} e6 {[%emt 0:01:44]} 7. d3 {[%emt 0:04:05]} Ne7 {[%emt 0:04:31]} 8. bxc5 {[%emt 0:11:03]} Nxc5 {[%emt 0:00:52]} 9. d4 {[%emt 0:01:54]} Nd7 {[%emt 0:01:30]} 10. Bd3 {[%emt 0:07:12]} g6 {[%emt 0:03:28]} 11. Nb5 {[%emt 0:02:59]} d5 {[%emt 0:01:35]} 12. Nd6# {[%emt 0:00:14]} 1-0

[Event "ONJK-DE 2019"]
[Site "Borne"]
[Date "2019.08.05"]
[Round "1.4"]
[White "Van de Poel, Jona"]
[Black "Froeyman, Hugo"]
[Result "0-1"]
[ECO "B18"]
[WhiteElo "843"]
[BlackElo "1598"]
[Annotator "NA"]
[PlyCount "52"]
[EventDate "2019.08.05"]
[EventType "swiss"]
[EventCountry "NED"]
[SourceTitle "playchess.com"]
[Source "ChessBase"]
[SourceQuality "1"]
[TimeControl "2400+30"]

1. e4 {[%emt 0:00:00]} c6 {[%emt 0:00:00]} 2. d4 {[%emt 0:00:00]} d5 {[%emt 0:00:03]} 3. Nc3 {[%emt 0:00:13]} dxe4 {[%emt 0:00:17]} 4. Nxe4 {[%emt 0:00:07]} Bf5 {[%emt 0:00:23]} 5. Ng3 {[%emt 0:00:31]} Bg6 {[%emt 0:00:09]} 6. Bc4 {[%emt 0:01:24]} Nf6 {[%emt 0:01:49]} 7. Nf3 {[%emt 0:00:30]} Nbd7 {[%emt 0:00:38]} 8. O-O {[%emt 0:00:22]} e6 {[%emt 0:00:20]} 9. Bg5 {[%emt 0:00:18]} Be7 {[%emt 0:00:28]} 10. Nd2 {[%emt 0:02:57]} O-O {[%emt 0:00:24]} 11. Re1 {[%emt 0:01:17]} h6 {[%emt 0:01:46]} 12. Bf4 {[%emt 0:00:56]} Nb6 {[%emt 0:00:36]} 13. c3 {[%emt 0:00:37]} Nbd5 {[%emt 0:05:12]} 14. Be5 {[%emt 0:02:19]} Nd7 {[%emt 0:01:49]} 15. Qg4 {[%emt 0:02:50]} Nxe5 {[%emt 0:03:55]} 16. Rxe5 {[%emt 0:00:17]} Bf6 {[%emt 0:00:48]} 17. Re2 {[%emt 0:01:07]} Bg5 {[%emt 0:01:53]} 18. Nde4 {[%emt 0:01:54]} f5 {[%emt 0:00:59]} 19. Qh3 {[%emt 0:01:49]} Nf4 {[%emt 0:02:04]} 20. Bxe6+ {[%emt 0:02:55]} Kh8 {[%emt 0:00:44]} 21. Nxf5 {[%emt 0:01:53]} Nxh3+ {[%emt 0:00:14]} 22. gxh3 {[%emt 0:00:09]} Bxf5 {[%emt 0:00:20]} 23. Bxf5 {[%emt 0:00:16]} Rxf5 {[%emt 0:00:10]} 24. Ng3 {[%emt 0:00:05]} Rf8 {[%emt 0:00:09]} 25. Rae1 {[%emt 0:00:14]} Qd7 {[%emt 0:00:23]} 26. Kg2 {[%emt 0:00:19]} Qf7 {[%emt 0:00:13]} 0-1

[Event "ONJK-DE 2019"]
[Site "Borne"]
[Date "2019.08.05"]
[Round "1.5"]
[White "Ponomarev, Ivan"]
[Black "Henckens, Elof"]
[Result "1-0"]
[ECO "B01"]
[WhiteElo "1317"]
[BlackElo "832"]
[Annotator "NA"]
[PlyCount "95"]
[EventDate "2019.08.05"]
[EventType "swiss"]
[EventCountry "NED"]
[SourceTitle "playchess.com"]
[Source "ChessBase"]
[SourceQuality "1"]
[TimeControl "2400+30"]

1. e4 {[%emt 0:00:00]} c6 {[%emt 0:00:00]} 2. d4 {[%emt 0:00:00]} d5 {[%emt 0:00:00]} 3. Nc3 {[%emt 0:00:00]} dxe4 {[%emt 0:00:07]} 4. Nxe4 {[%emt 0:00:12]} Nf6 {[%emt 0:00:13]} 5. Nxf6+ {[%emt 0:01:45]} gxf6 {[%emt 0:00:05]} 6. Bc4 {[%emt 0:01:54]} Bf5 {[%emt 0:02:11]} 7. Nf3 {[%emt 0:03:38]} Qc7 {[%emt 0:04:29]} 8. Be3 {[%emt 0:03:53]} e6 {[%emt 0:03:55]} 9. Qd2 {[%emt 0:06:02]} Nd7 {[%emt 0:03:37]} 10. O-O-O {[%emt 0:04:40]} O-O-O {[%emt 0:03:47]} 11. Bf4 {[%emt 0:04:33]} Bd6 {[%emt 0:03:00]} 12. Bxd6 {[%emt 0:01:37]} Qxd6 {[%emt 0:01:11]} 13. Rhe1 {[%emt 0:03:25]} Nb6 {[%emt 0:02:33]} 14. Bd3 {[%emt 0:01:30]} Bg6 {[%emt 0:01:00]} 15. Qa5 {[%emt 0:04:46]} Kb8 {[%emt 0:01:59]} 16. Bxg6 {[%emt 0:03:53]} fxg6 {[%emt 0:00:40]} 17. Rd3 {[%emt 0:01:36]} Rhe8 {[%emt 0:02:55]} 18. Ra3 {[%emt 0:01:30]} Nc8 {[%emt 0:03:06]} 19. Ree3 {[%emt 0:03:00]} a6 {[%emt 0:00:31]} 20. Reb3 {[%emt 0:00:27]} Qf4+ {[%emt 0:05:35]} 21. Kb1 {[%emt 0:01:12]} Rxd4 {[%emt 0:00:26]} 22. Nxd4 {[%emt 0:00:15]} Qxd4 {[%emt 0:00:09]} 23. Qe1 {[%emt 0:00:25]} Rd8 {[%emt 0:01:11]} 24. Rd3 {[%emt 0:00:19]} Qb6 {[%emt 0:01:00]} 25. Rxd8 {[%emt 0:00:27]} Qxd8 {[%emt 0:00:34]} 26. Rd3 {[%emt 0:00:11]} Qe7 {[%emt 0:01:28]} 27. Re3 {[%emt 0:00:34]} e5 {[%emt 0:00:06]} 28. f4 {[%emt 0:00:15]} Qd6 {[%emt 0:00:58]} 29. fxe5 {[%emt 0:00:24]} fxe5 {[%emt 0:00:34]} 30. Rxe5 {[%emt 0:00:23]} Kc7 {[%emt 0:00:45]} 31. Re8 {[%emt 0:01:20]} Qxh2 {[%emt 0:00:40]} 32. Qe5+ {[%emt 0:00:42]} Qxe5 {[%emt 0:00:20]} 33. Rxe5 {[%emt 0:00:02]} Kd7 {[%emt 0:01:16]} 34. Re3 {[%emt 0:01:05]} Nd6 {[%emt 0:00:26]} 35. Rh3 {[%emt 0:00:17]} h5 {[%emt 0:00:16]} 36. Rg3 {[%emt 0:00:15]} Nf5 {[%emt 0:01:16]} 37. Rxg6 {[%emt 0:00:27]} h4 {[%emt 0:00:30]} 38. Rg5 {[%emt 0:00:17]} Ke6 {[%emt 0:00:24]} 39. c4 {[%emt 0:01:06]} Ke5 {[%emt 0:01:02]} 40. Kc2 {[%emt 0:00:49]} Kf4 {[%emt 0:00:16]} 41. Rg8 {[%emt 0:00:14]} Ne3+ {[%emt 0:02:49]} 42. Kd3 {[%emt 0:00:18]} Ng4 {[%emt 0:00:23]} 43. b3 {[%emt 0:00:55]} Ne5+ {[%emt 0:01:40]} 44. Kd4 {[%emt 0:00:30]} Nf3+ {[%emt 0:00:31]} 45. gxf3 {[%emt 0:00:07]} Kxf3 {[%emt 0:00:08]} 46. Rh8 {[%emt 0:00:13]} Kg3 {[%emt 0:00:21]} 47. Kc5 {[%emt 0:00:04]} h3 {[%emt 0:00:15]} 48. Kb6 {[%emt 0:00:03]} 1-0

[Event "ONJK-DE 2019"]
[Site "Borne"]
[Date "2019.08.05"]
[Round "1.6"]
[White "Elferink, Leon"]
[Black "Van Egmond, Tom"]
[Result "1/2-1/2"]
[ECO "A04"]
[WhiteElo "821"]
[BlackElo "1358"]
[Annotator "NA"]
[PlyCount "132"]
[EventDate "2019.08.05"]
[EventType "swiss"]
[EventCountry "NED"]
[SourceTitle "playchess.com"]
[Source "ChessBase"]
[SourceQuality "1"]
[TimeControl "2400+30"]

1. Nf3 {[%emt 0:00:00]} c5 {[%emt 0:00:00]} 2. g3 {[%emt 0:00:00]} Nf6 {[%emt 0:00:09]} 3. d3 {[%emt 0:00:00]} d5 {[%emt 0:00:19]} 4. Bg2 {[%emt 0:00:08]} Nc6 {[%emt 0:01:23]} 5. c3 {[%emt 0:00:18]} Bf5 {[%emt 0:01:17]} 6. Bg5 {[%emt 0:00:52]} e6 {[%emt 0:00:43]} 7. Nbd2 {[%emt 0:00:25]} h6 {[%emt 0:00:16]} 8. Bxf6 {[%emt 0:00:23]} Qxf6 {[%emt 0:00:31]} 9. Qb3 {[%emt 0:00:35]} Rb8 {[%emt 0:01:16]} 10. O-O {[%emt 0:01:12]} b5 {[%emt 0:09:12]} 11. a3 {[%emt 0:04:01]} c4 {[%emt 0:12:22]} 12. Qc2 {[%emt 0:03:04]} Be7 {[%emt 0:02:45]} 13. e4 {[%emt 0:02:22]} cxd3 {[%emt 0:00:06]} 14. Qxd3 {[%emt 0:00:21]} Bh7 {[%emt 0:00:41]} 15. Qe3 {[%emt 0:00:54]} dxe4 {[%emt 0:03:06]} 16. Nxe4 {[%emt 0:00:21]} Qf5 {[%emt 0:01:04]} 17. Nfd2 {[%emt 0:01:57]} O-O {[%emt 0:01:24]} 18. Qf3 {[%emt 0:01:25]} Ne5 {[%emt 0:00:42]} 19. Qxf5 {[%emt 0:00:16]} Bxf5 {[%emt 0:00:13]} 20. Rfd1 {[%emt 0:02:48]} Rfd8 {[%emt 0:01:14]} 21. b4 {[%emt 0:02:07]} Rbc8 {[%emt 0:01:22]} 22. f4 {[%emt 0:01:01]} Ng4 {[%emt 0:01:13]} 23. Rac1 {[%emt 0:01:24]} Rd3 {[%emt 0:02:30]} 24. h3 {[%emt 0:02:25]} Ne3 {[%emt 0:00:17]} 25. Re1 {[%emt 0:02:00]} Nd5 {[%emt 0:00:55]} 26. Bf1 {[%emt 0:01:32]} Re3 {[%emt 0:03:44]} 27. Rxe3 {[%emt 0:00:44]} Nxe3 {[%emt 0:00:02]} 28. Bxb5 {[%emt 0:00:44]} Bxh3 {[%emt 0:00:24]} 29. Kf2 {[%emt 0:01:21]} Nd5 {[%emt 0:00:31]} 30. Bf1 {[%emt 0:01:02]} Bxf1 {[%emt 0:00:36]} 31. Kxf1 {[%emt 0:00:07]} f5 {[%emt 0:00:21]} 32. Nf2 {[%emt 0:01:22]} Rxc3 {[%emt 0:00:26]} 33. Rxc3 {[%emt 0:00:20]} Nxc3 {[%emt 0:00:01]} 34. Nd3 {[%emt 0:00:51]} Nb5 {[%emt 0:01:20]} 35. Nb1 {[%emt 0:00:13]} g5 {[%emt 0:00:17]} 36. Kf2 {[%emt 0:01:16]} Kg7 {[%emt 0:00:38]} 37. Ke3 {[%emt 0:00:49]} Kf6 {[%emt 0:00:20]} 38. a4 {[%emt 0:00:33]} Nd6 {[%emt 0:00:21]} 39. Nc5 {[%emt 0:01:25]} Nc4+ {[%emt 0:01:05]} 40. Kd4 {[%emt 0:01:01]} Nb6 {[%emt 0:01:04]} 41. a5 {[%emt 0:00:39]} Nc8 {[%emt 0:00:09]} 42. Nd7+ {[%emt 0:00:47]} Kg7 {[%emt 0:00:25]} 43. b5 {[%emt 0:00:32]} gxf4 {[%emt 0:00:33]} 44. gxf4 {[%emt 0:00:37]} h5 {[%emt 0:00:24]} 45. Nd2 {[%emt 0:00:19]} Bd8 {[%emt 0:00:58]} 46. a6 {[%emt 0:00:24]} Nd6 {[%emt 0:03:33]} 47. b6 {[%emt 0:01:57]} axb6 {[%emt 0:00:09]} 48. a7 {[%emt 0:00:11]} Nb5+ {[%emt 0:00:01]} 49. Ke5 {[%emt 0:00:42]} Nxa7 {[%emt 0:00:19]} 50. Kxe6 {[%emt 0:00:11]} Bc7 {[%emt 0:00:57]} 51. Kxf5 {[%emt 0:00:21]} Kh6 {[%emt 0:00:22]} 52. Ke4 {[%emt 0:00:32]} h4 {[%emt 0:01:09]} 53. Nf3 {[%emt 0:00:41]} h3 {[%emt 0:00:02]} 54. f5 {[%emt 0:01:07]} h2 {[%emt 0:00:14]} 55. Nxh2 {[%emt 0:00:06]} Bxh2 {[%emt 0:00:01]} 56. Nxb6 {[%emt 0:00:11]} Kg7 {[%emt 0:00:07]} 57. Kd5 {[%emt 0:00:17]} Kf6 {[%emt 0:00:12]} 58. Ke4 {[%emt 0:00:18]} Nc6 {[%emt 0:00:15]} 59. Nd5+ {[%emt 0:00:21]} Kf7 {[%emt 0:00:16]} 60. f6 {[%emt 0:00:13]} Nd8 {[%emt 0:01:04]} 61. Kf5 {[%emt 0:00:33]} Ne6 {[%emt 0:00:16]} 62. Nb4 {[%emt 0:00:24]} Nd4+ {[%emt 0:00:24]} 63. Kg5 {[%emt 0:00:24]} Be5 {[%emt 0:00:23]} 64. Nd5 {[%emt 0:00:23]} Ke6 {[%emt 0:00:57]} 65. Nf4+ {[%emt 0:00:20]} Bxf4+ {[%emt 0:00:30]} 66. Kxf4 {[%emt 0:00:08]} Kxf6 {[%emt 0:00:05]} 1/2-1/2

[Event "ONJK-DE 2019"]
[Site "Borne"]
[Date "2019.08.05"]
[Round "1.7"]
[White "Koene, Noel"]
[Black "Meijboom, David"]
[Result "1-0"]
[ECO "C50"]
[WhiteElo "1638"]
[BlackElo "787"]
[Annotator "NA"]
[PlyCount "61"]
[EventDate "2019.08.05"]
[EventType "swiss"]
[EventCountry "NED"]
[SourceTitle "playchess.com"]
[Source "ChessBase"]
[SourceQuality "1"]
[TimeControl "2400+30"]

1. e4 {[%emt 0:00:00]} e5 {[%emt 0:00:00]} 2. Nf3 {[%emt 0:00:00]} Nc6 {[%emt 0:00:00]} 3. Bc4 {[%emt 0:00:00]} Bc5 {[%emt 0:00:00]} 4. d3 {[%emt 0:00:00]} d6 {[%emt 0:00:00]} 5. Ng5 {[%emt 0:01:13]} Qf6 {[%emt 0:00:37]} 6. Bxf7+ {[%emt 0:01:07]} Kf8 {[%emt 0:00:56]} 7. O-O {[%emt 0:00:22]} h6 {[%emt 0:01:19]} 8. Bxg8 {[%emt 0:00:12]} hxg5 {[%emt 0:00:10]} 9. Bd5 {[%emt 0:01:00]} Qh6 {[%emt 0:00:17]} 10. Qf3+ {[%emt 0:00:43]} Ke8 {[%emt 0:01:30]} 11. Qg3 {[%emt 0:00:58]} Nd4 {[%emt 0:00:47]} 12. Nc3 {[%emt 0:01:57]} Bb4 {[%emt 0:00:38]} 13. Kh1 {[%emt 0:03:34]} Bxc3 {[%emt 0:00:07]} 14. h3 {[%emt 0:08:41]} Ne2 {[%emt 0:00:27]} 15. Qf3 {[%emt 0:02:35]} Nxc1 {[%emt 0:00:13]} 16. bxc3 {[%emt 0:01:53]} g4 {[%emt 0:00:03]} 17. Qd1 {[%emt 0:11:18]} gxh3 {[%emt 0:00:25]} 18. g3 {[%emt 0:00:15]} Nxa2 {[%emt 0:00:54]} 19. Bxa2 {[%emt 0:00:37]} Qf6 {[%emt 0:00:27]} 20. f4 {[%emt 0:03:35]} h2 {[%emt 0:01:09]} 21. fxe5 {[%emt 0:01:32]} Qxe5 {[%emt 0:00:22]} 22. Qf3 {[%emt 0:00:46]} Be6 {[%emt 0:00:10]} 23. d4 {[%emt 0:00:57]} Qf6 {[%emt 0:00:53]} 24. Qxf6 {[%emt 0:00:06]} gxf6 {[%emt 0:00:36]} 25. Bxe6 {[%emt 0:00:00]} Ke7 {[%emt 0:00:30]} 26. Bc4 {[%emt 0:00:35]} Rag8 {[%emt 0:00:38]} 27. Bxg8 {[%emt 0:00:40]} Rxg8 {[%emt 0:00:05]} 28. Kxh2 {[%emt 0:00:06]} a6 {[%emt 0:00:32]} 29. Rfb1 {[%emt 0:00:30]} Rb8 {[%emt 0:00:04]} 30. Kg2 {[%emt 0:00:55]} Kd7 {[%emt 0:00:21]} 31. Rxa6 {[%emt 0:00:20]} 1-0

[Event "ONJK-DE 2019"]
[Site "Borne"]
[Date "2019.08.05"]
[Round "1.8"]
[White "Damen, Josephine"]
[Black "Feng, Elysia"]
[Result "0-1"]
[ECO "C50"]
[WhiteElo "782"]
[BlackElo "1314"]
[Annotator "NA"]
[PlyCount "106"]
[EventDate "2019.08.05"]
[EventType "swiss"]
[EventCountry "NED"]
[SourceTitle "playchess.com"]
[Source "ChessBase"]
[SourceQuality "1"]
[TimeControl "2400+30"]

1. e4 {[%emt 0:00:00]} e5 {[%emt 0:00:00]} 2. Nf3 {[%emt 0:00:00]} Nc6 {[%emt 0:00:00]} 3. Bc4 {[%emt 0:00:00]} Bc5 {[%emt 0:00:00]} 4. d3 {[%emt 0:00:02]} h6 {[%emt 0:00:04]} 5. Be3 {[%emt 0:00:13]} Bb6 {[%emt 0:00:09]} 6. Nc3 {[%emt 0:00:12]} Nf6 {[%emt 0:00:09]} 7. O-O {[%emt 0:00:13]} d6 {[%emt 0:00:05]} 8. Ne2 {[%emt 0:00:37]} Bg4 {[%emt 0:00:11]} 9. Ng3 {[%emt 0:00:16]} O-O {[%emt 0:00:21]} 10. c3 {[%emt 0:00:29]} Re8 {[%emt 0:00:18]} 11. d4 {[%emt 0:05:16]} exd4 {[%emt 0:00:42]} 12. cxd4 {[%emt 0:02:14]} Nxe4 {[%emt 0:00:24]} 13. Re1 {[%emt 0:11:32]} Nxg3 {[%emt 0:02:11]} 14. fxg3 {[%emt 0:01:48]} Qf6 {[%emt 0:00:43]} 15. h3 {[%emt 0:02:33]} Bxf3 {[%emt 0:00:26]} 16. Qxf3 {[%emt 0:03:41]} Bxd4 {[%emt 0:00:33]} 17. Qxf6 {[%emt 0:03:02]} Bxf6 {[%emt 0:00:08]} 18. Bd2 {[%emt 0:02:06]} Bxb2 {[%emt 0:00:26]} 19. Rxe8+ {[%emt 0:00:31]} Rxe8 {[%emt 0:00:11]} 20. Rf1 {[%emt 0:00:24]} Bf6 {[%emt 0:00:18]} 21. Bxh6 {[%emt 0:02:06]} Re4 {[%emt 0:01:24]} 22. Bd5 {[%emt 0:02:35]} Rd4 {[%emt 0:00:30]} 23. Bxc6 {[%emt 0:00:51]} bxc6 {[%emt 0:00:09]} 24. Be3 {[%emt 0:01:46]} Ra4 {[%emt 0:00:41]} 25. Rf2 {[%emt 0:01:00]} Ra3 {[%emt 0:01:07]} 26. Re2 {[%emt 0:01:02]} c5 {[%emt 0:01:22]} 27. g4 {[%emt 0:00:43]} Ra4 {[%emt 0:00:35]} 28. Kh2 {[%emt 0:01:46]} Re4 {[%emt 0:00:46]} 29. Kg3 {[%emt 0:02:07]} Rc4 {[%emt 0:01:48]} 30. h4 {[%emt 0:00:57]} Rc3 {[%emt 0:00:30]} 31. Kf4 {[%emt 0:01:38]} Rc4+ {[%emt 0:02:10]} 32. Kf5 {[%emt 0:00:39]} Bxh4 {[%emt 0:01:31]} 33. g5 {[%emt 0:02:22]} Bg3 {[%emt 0:00:41]} 34. g6 {[%emt 0:00:56]} Be5 {[%emt 0:01:01]} 35. g3 {[%emt 0:00:46]} fxg6+ {[%emt 0:00:09]} 36. Kxg6 {[%emt 0:00:15]} Rg4+ {[%emt 0:00:05]} 37. Bg5 {[%emt 0:00:12]} Rxg3 {[%emt 0:00:22]} 38. Re1 {[%emt 0:00:17]} Kf8 {[%emt 0:00:00]} 39. Rf1+ {[%emt 0:00:29]} Bf6 {[%emt 0:00:06]} 40. Kh5 {[%emt 0:01:03]} Rxg5+ {[%emt 0:00:05]} 41. Kh4 {[%emt 0:00:33]} Rf5+ {[%emt 0:00:04]} 42. Kg4 {[%emt 0:00:15]} Rxf1 {[%emt 0:00:05]} 43. a3 {[%emt 0:00:23]} c4 {[%emt 0:00:07]} 44. Kg3 {[%emt 0:00:14]} Rf5 {[%emt 0:00:10]} 45. Kg4 {[%emt 0:00:12]} g6 {[%emt 0:00:06]} 46. a4 {[%emt 0:00:13]} Ke7 {[%emt 0:00:06]} 47. a5 {[%emt 0:00:09]} Ke6 {[%emt 0:00:05]} 48. a6 {[%emt 0:00:09]} Ke5 {[%emt 0:00:04]} 49. Kg3 {[%emt 0:00:22]} Ke4 {[%emt 0:00:09]} 50. Kg2 {[%emt 0:00:14]} Ke3 {[%emt 0:00:09]} 51. Kg1 {[%emt 0:00:09]} Ke2 {[%emt 0:00:07]} 52. Kh1 {[%emt 0:00:15]} Kf2 {[%emt 0:00:12]} 53. Kh2 {[%emt 0:00:10]} Rh5# {[%emt 0:00:05]} 0-1

[Event "ONJK-DE 2019"]
[Site "Borne"]
[Date "2019.08.05"]
[Round "1.9"]
[White "Kazarjan, Gachatur"]
[Black "Van Sighem, Niels"]
[Result "1-0"]
[ECO "C45"]
[WhiteElo "1490"]
[BlackElo "629"]
[Annotator "NA"]
[PlyCount "45"]
[EventDate "2019.08.05"]
[EventType "swiss"]
[EventCountry "NED"]
[SourceTitle "playchess.com"]
[Source "ChessBase"]
[SourceQuality "1"]
[TimeControl "2400+30"]

1. e4 {[%emt 0:00:00]} e5 {[%emt 0:00:00]} 2. Nf3 {[%emt 0:00:00]} Nc6 {[%emt 0:00:00]} 3. d4 {[%emt 0:00:00]} exd4 {[%emt 0:00:12]} 4. Nxd4 {[%emt 0:00:00]} Nxd4 {[%emt 0:00:15]} 5. Qxd4 {[%emt 0:00:00]} Nf6 {[%emt 0:00:20]} 6. e5 {[%emt 0:00:06]} Nh5 {[%emt 0:00:37]} 7. g4 {[%emt 0:00:15]} Ng3 {[%emt 0:00:43]} 8. hxg3 {[%emt 0:00:14]} b6 {[%emt 0:00:17]} 9. Bg2 {[%emt 0:00:09]} Bc5 {[%emt 0:00:13]} 10. Qd3 {[%emt 0:00:44]} Rb8 {[%emt 0:00:22]} 11. Rxh7 {[%emt 0:00:29]} Rg8 {[%emt 0:00:31]} 12. Nc3 {[%emt 0:00:40]} d6 {[%emt 0:00:36]} 13. Bf4 {[%emt 0:00:31]} b5 {[%emt 0:01:00]} 14. O-O-O {[%emt 0:00:27]} Ba6 {[%emt 0:00:22]} 15. Nd5 {[%emt 0:00:26]} c6 {[%emt 0:00:52]} 16. Nf6+ {[%emt 0:01:13]} gxf6 {[%emt 0:00:25]} 17. Bxc6+ {[%emt 0:00:11]} Ke7 {[%emt 0:00:45]} 18. Rxf7+ {[%emt 0:01:03]} Kxf7 {[%emt 0:00:23]} 19. Qh7+ {[%emt 0:00:08]} Rg7 {[%emt 0:00:37]} 20. Bd5+ {[%emt 0:00:20]} Kf8 {[%emt 0:00:59]} 21. Qh8+ {[%emt 0:00:25]} Ke7 {[%emt 0:00:37]} 22. Qxg7+ {[%emt 0:00:08]} Ke8 {[%emt 0:00:22]} 23. Qf7# {[%emt 0:00:18]} 1-0